bitfinex/quotes_BTCUSD_20250102
["timestamp","ask_amount","ask_price","bid_price","bid_amount"]
[1735807335164,0.00066258,96042.0,96041.0,1.98119694]
[1735807335626,0.00066258,96042.0,96041.0,1.89674032]
[1735807336014,0.00066258,96042.0,96041.0,1.88774032]
[1735807336377,0.00066258,96042.0,96041.0,1.89674032]
[1735807336579,0.00066258,96042.0,96041.0,1.90690192]
[1735807339067,5.8e-07,96042.0,96041.0,2.01700192]
[1735807339240,5.8e-07,96042.0,96041.0,2.04940587]
[1735807339440,0.0002,96049.0,96041.0,2.04940587]
[1735807339441,1e-06,96049.0,96048.0,0.35]
[1735807339671,5.3e-07,96049.0,96048.0,1.32868532]
[1735807339853,5.3e-07,96049.0,96048.0,1.43878532]
[1735807340408,5.3e-07,96049.0,96048.0,1.47116486]
[1735807341199,5.3e-07,96049.0,96048.0,1.48016486]
[1735807341395,0.076,96085.0,96048.0,1.48016486]
[1735807341396,0.076,96085.0,96064.0,1.177094]
[1735807341596,0.00023222,96065.0,96064.0,1.35008032]
[1735807341796,0.00023222,96065.0,96064.0,1.87057032]
[1735807343132,0.00023222,96065.0,96064.0,1.87957032]
[1735807343707,0.00023222,96065.0,96064.0,1.88857032]
[1735807344607,0.00023222,96065.0,96064.0,1.99867032]
[1735807345141,0.00023222,96065.0,96064.0,1.87577032]
[1735807346513,0.00013222,96065.0,96064.0,1.33377032]
[1735807351203,0.00013222,96065.0,96064.0,1.34421466]
[1735807354324,0.00013222,96065.0,96064.0,1.33377032]
[1735807356579,0.0766,96081.0,96073.0,0.25]
[1735807356755,0.0766,96081.0,96073.0,1.14060132]
[1735807357819,0.0766,96081.0,96073.0,1.14960132]
[1735807358248,0.0766,96081.0,96073.0,1.15660132]
[1735807361433,7.06e-05,96074.0,96073.0,1.15660132]
[1735807363313,7.06e-05,96074.0,96073.0,1.18903294]
[1735807376006,7.06e-05,96074.0,96073.0,1.28221254]
[1735807378014,7.06e-05,96074.0,96073.0,1.18903294]
[1735807379803,7.06e-05,96074.0,96073.0,1.28264945]
[1735807381767,7.06e-05,96074.0,96073.0,1.18920374]
[1735807382671,7.06e-05,96074.0,96073.0,1.32897315]
[1735807383534,0.0765706,96081.0,96080.0,0.208159]
[1735807383730,0.0765706,96081.0,96080.0,0.88453164]
[1735807384525,0.0226412,96089.0,96086.0,0.208145]
[1735807384722,0.0226412,96089.0,96087.0,0.10398632]
[1735807384949,0.0226412,96089.0,96088.0,0.231142]
[1735807385149,0.0226412,96089.0,96088.0,0.85548832]
[1735807385346,0.0226412,96089.0,96088.0,0.89048832]
[1735807385550,0.0226412,96089.0,96088.0,0.68234632]
[1735807386695,0.0226412,96089.0,96088.0,0.68634632]
[1735807387157,0.0226412,96089.0,96088.0,0.69534632]
[1735807387483,0.1019412,96089.0,96088.0,0.69534632]
[1735807387887,0.1019412,96089.0,96088.0,0.66034632]
[1735807388902,0.1019412,96089.0,96088.0,0.63734632]
[1735807389363,0.1045925,96089.0,96088.0,0.63734632]
[1735807390984,0.1045925,96089.0,96088.0,0.53336]
[1735807391400,0.1046779,96089.0,96088.0,0.53336]
[1735807391774,0.19861099,96089.0,96088.0,0.53336]
[1735807391975,0.19861099,96089.0,96088.0,0.52436]
[1735807392179,0.19861099,96089.0,96088.0,0.53136]
[1735807392391,0.19861099,96089.0,96088.0,0.52736]
[1735807392708,0.19861099,96089.0,96088.0,0.53036]
[1735807392906,0.1046779,96089.0,96088.0,0.53036]
[1735807393312,0.1046779,96089.0,96088.0,0.52736]
[1735807393518,0.1046779,96089.0,96088.0,0.52036]
[1735807393910,0.1046779,96089.0,96088.0,0.52836]
[1735807394139,0.1046779,96089.0,96088.0,0.52336]
[1735807394341,0.1046779,96089.0,96088.0,0.53036]
[1735807394662,0.1046779,96089.0,96088.0,0.52336]
[1735807394862,0.3546779,96089.0,96088.0,0.39526]
[1735807395089,0.3390367,96089.0,96088.0,0.22316]
[1735807395313,0.2597367,96089.0,96088.0,0.14606]
[1735807395518,0.2597367,96089.0,96088.0,0.14306]
[1735807395744,0.2597367,96089.0,96088.0,0.14506]
[1735807396352,0.2597367,96089.0,96088.0,0.14306]
[1735807396565,0.2597367,96089.0,96088.0,0.14406]
[1735807396978,0.2597367,96089.0,96088.0,0.14306]
[1735807397186,0.44818666,96089.0,96088.0,0.14306]
[1735807397581,0.50629052,96089.0,96088.0,0.14306]
[1735807398107,0.2607367,96089.0,96088.0,0.14306]
[1735807400658,0.40120354,96089.0,96088.0,0.14306]
[1735807401802,0.2607367,96089.0,96088.0,0.14306]
[1735807402484,0.1607367,96089.0,96088.0,0.14306]
[1735807403872,0.25432754,96089.0,96088.0,0.1432306]
[1735807404863,0.41896162,96089.0,96088.0,0.1432306]
[1735807405906,0.32537078,96089.0,96088.0,0.1432306]
[1735807406688,0.51282074,96089.0,96088.0,0.1432306]
[1735807407511,0.32537078,96089.0,96088.0,0.1432306]
[1735807411894,0.53104378,96089.0,96088.0,0.1432306]
[1735807412115,0.32537078,96089.0,96088.0,0.1432306]
[1735807412780,0.55170078,96089.0,96088.0,0.1432306]
[1735807413030,0.32537078,96089.0,96088.0,0.1432306]
[1735807414434,0.44979678,96089.0,96088.0,0.1432306]
[1735807414664,0.44979578,96089.0,96088.0,0.1432306]
[1735807415575,0.63676578,96089.0,96088.0,0.1432306]
[1735807416387,0.51234078,96089.0,96088.0,0.1432306]
[1735807416756,0.4477067,96089.0,96088.0,0.1432306]
[1735807417321,0.4407067,96089.0,96088.0,0.1432306]
[1735807420876,0.2537367,96089.0,96088.0,0.1432306]
[1735807421150,0.5745297,96089.0,96088.0,0.1432306]
[1735807421354,0.2537367,96089.0,96088.0,0.1432306]
[1735807426184,0.48814323,96089.0,96088.0,0.1432306]
[1735807427984,0.2537367,96089.0,96088.0,0.1432306]
[1735807430785,0.35772302,96089.0,96088.0,0.1432306]
[1735807431923,0.2537367,96089.0,96088.0,0.1432306]
[1735807433465,0.4113577,96089.0,96088.0,0.1432306]
[1735807433691,0.2537367,96089.0,96088.0,0.1432306]
[1735807436715,0.8828767,96089.0,96088.0,0.1432306]
[1735807438091,0.8818767,96089.0,96088.0,0.1432306]
[1735807438301,0.98786302,96089.0,96088.0,0.1432306]
[1735807440929,1.08786302,96089.0,96088.0,0.0661006]
[1735807441386,1.08786302,96089.0,96088.0,0.0244726]
[1735807442154,1.08586302,96089.0,96088.0,0.0244726]
[1735807442528,0.9818767,96089.0,96088.0,0.0244726]
[1735807442733,0.0027367,96089.0,96088.0,0.1529726]
[1735807442931,0.0067367,96089.0,96088.0,0.16826986]
[1735807443158,0.0097367,96089.0,96088.0,0.16826986]
[1735807443638,0.0067367,96089.0,96088.0,0.16826986]
[1735807443858,0.0067367,96089.0,96088.0,0.27225618]
[1735807444043,0.0087367,96089.0,96088.0,0.27225618]
[1735807444231,0.0047367,96089.0,96088.0,0.27225618]
[1735807444436,0.0027367,96089.0,96088.0,0.27225618]
[1735807444590,0.0107367,96089.0,96088.0,0.25795892]
[1735807444931,0.0107367,96089.0,96088.0,0.25695892]
[1735807447464,0.0027367,96089.0,96088.0,0.25695892]
[1735807448318,0.18768199,96098.0,96090.0,0.0762]
[1735807448523,0.14090896,96095.0,96094.0,0.355629]
[1735807448733,0.00014747,96095.0,96094.0,0.45961532]
[1735807449162,0.00265283,96095.0,96094.0,0.45961532]
[1735807449361,0.00265283,96095.0,96094.0,0.47772175]
[1735807450201,0.00014747,96095.0,96094.0,0.47772175]
[1735807450378,0.00023277,96095.0,96094.0,0.47772175]
[1735807450676,0.00123277,96095.0,96094.0,1.49412175]
[1735807451241,0.00223277,96095.0,96094.0,1.50612175]
[1735807453799,0.00223277,96095.0,96094.0,1.48801532]
[1735807460368,0.00223277,96095.0,96094.0,1.13238632]
[1735807460572,0.00223277,96095.0,96094.0,1.20858632]
[1735807460785,0.00478154,96095.0,96094.0,1.20858632]
[1735807460991,0.00223277,96095.0,96094.0,1.20858632]
[1735807461210,0.00478013,96095.0,96094.0,1.20558632]
[1735807461417,0.00223277,96095.0,96094.0,1.20558632]
[1735807461615,0.00323277,96095.0,96094.0,1.20558632]
[1735807461830,0.00578012,96095.0,96094.0,1.20558632]
[1735807463586,0.00478012,96095.0,96094.0,1.20558632]
[1735807463789,0.00478012,96095.0,96094.0,1.20858632]
[1735807465150,0.00478012,96095.0,96094.0,1.25428632]
[1735807465542,0.00223277,96095.0,96094.0,1.25428632]
[1735807465940,0.00218277,96095.0,96094.0,1.25428632]
[1735807467262,0.00472413,96095.0,96094.0,1.25428632]
[1735807467489,0.00218277,96095.0,96094.0,1.25428632]
[1735807467707,0.00218277,96095.0,96094.0,1.25128632]
[1735807467862,0.00472413,96095.0,96094.0,1.25128632]
[1735807468069,0.00272413,96095.0,96094.0,1.24328632]
[1735807468477,0.00272413,96095.0,96094.0,1.24528632]
[1735807470057,0.00372413,96095.0,96094.0,1.25428632]
[1735807470875,0.00372413,96095.0,96094.0,1.27728632]
[1735807471081,0.00118277,96095.0,96094.0,1.27728632]
[1735807473190,0.00118277,96095.0,96094.0,1.25428632]
[1735807481928,0.00118277,96095.0,96094.0,1.0284]
[1735807482131,0.47816909,96095.0,96094.0,1.007587]
[1735807482334,0.74586243,96095.0,96094.0,1.007587]
[1735807482470,0.84586243,96095.0,96094.0,1.007587]
[1735807482689,0.84586243,96095.0,96094.0,1.004587]
[1735807483095,0.94984875,96095.0,96094.0,0.963961]
[1735807483316,0.94984875,96095.0,96094.0,0.901522]
[1735807483489,0.94984875,96095.0,96094.0,0.900522]
[1735807483721,0.94984875,96095.0,96094.0,0.858896]
[1735807483942,0.95184875,96095.0,96094.0,0.81727]
[1735807484140,0.95084875,96095.0,96094.0,0.787457]
[1735807484345,0.94884875,96095.0,96094.0,0.787457]
[1735807484545,0.94884875,96095.0,96094.0,0.7876276]
[1735807484747,0.84686243,96095.0,96094.0,0.7668146]
[1735807484946,0.84686243,96095.0,96094.0,0.7460016]
[1735807485235,0.16378511,96095.0,96094.0,0.7470016]
[1735807486002,0.16178511,96095.0,96094.0,0.7470016]
[1735807486324,0.16578511,96095.0,96094.0,0.7470016]
[1735807486799,0.16178511,96095.0,96094.0,0.7470016]
[1735807487132,0.15278511,96095.0,96094.0,0.7460016]
[1735807487539,0.15278511,96095.0,96094.0,0.7480016]
[1735807491381,0.00278511,96095.0,96094.0,0.92858792]
[1735807491581,0.00278511,96095.0,96094.0,0.97708792]
[1735807492310,0.00278511,96095.0,96094.0,0.97508792]
[1735807492607,0.00013277,96095.0,96094.0,0.97608792]
[1735807492816,0.00013277,96095.0,96094.0,0.97508792]
[1735807493416,0.00013277,96095.0,96094.0,0.97708792]
[1735807493616,0.00013277,96095.0,96094.0,1.00008792]
[1735807494277,0.00013277,96095.0,96094.0,1.00608792]
[1735807508090,0.00013277,96095.0,96094.0,1.00248792]
[1735807508293,0.00013277,96095.0,96094.0,0.93098792]
[1735807508991,0.00013277,96095.0,96094.0,0.7504016]
[1735807509425,0.00263231,96095.0,96094.0,0.7504016]
[1735807510514,0.00263231,96095.0,96094.0,0.7444016]
[1735807510990,0.00363231,96095.0,96094.0,0.7444016]
[1735807511218,0.00363231,96095.0,96094.0,0.7424016]
[1735807511449,0.00363231,96095.0,96094.0,0.7444016]
[1735807511450,0.00263231,96095.0,96094.0,0.7444016]
[1735807511666,0.00263231,96095.0,96094.0,0.84838792]
[1735807511897,0.00263231,96095.0,96094.0,0.84938792]
[1735807512346,0.00013277,96095.0,96094.0,0.84938792]
[1735807512665,0.00261904,96095.0,96094.0,0.85038792]
[1735807512863,0.00013277,96095.0,96094.0,0.85038792]
[1735807513099,0.00261904,96095.0,96094.0,0.85038792]
[1735807513318,0.00013277,96095.0,96094.0,0.85038792]
[1735807513528,0.00312914,96095.0,96094.0,0.85038792]
[1735807513725,0.00312914,96095.0,96094.0,0.84738792]
[1735807513929,0.00312914,96095.0,96094.0,0.7434016]
[1735807514147,0.00412914,96095.0,96094.0,0.7484016]
[1735807514356,0.00312914,96095.0,96094.0,0.7444016]
[1735807514773,0.00412914,96095.0,96094.0,0.7534016]
[1735807514952,0.00412914,96095.0,96094.0,0.7514016]
[1735807515159,0.00412914,96095.0,96094.0,0.7544016]
[1735807520193,0.00412914,96095.0,96094.0,0.93438792]
[1735807520797,0.00113277,96095.0,96094.0,0.85838792]
[1735807521443,0.00413041,96095.0,96094.0,0.90778792]
[1735807521651,0.00113277,96095.0,96094.0,0.90778792]
[1735807528475,0.00411114,96095.0,96094.0,0.90778792]
[1735807529641,0.19862614,96101.0,96094.0,0.90778792]
[1735807529843,0.19867526,96101.0,96095.0,0.10398632]
[1735807530043,0.208123,96097.0,96095.0,0.10398632]
[1735807531598,0.208123,96097.0,96095.0,0.10698632]
[1735807532026,0.00268569,96096.0,96095.0,0.11598632]
[1735807533018,0.00268569,96096.0,96095.0,0.11298632]
[1735807533242,0.00268569,96096.0,96095.0,0.11598632]
[1735807533993,0.00268569,96096.0,96095.0,0.10698632]
[1735807534415,0.00368569,96096.0,96095.0,0.11598632]
[1735807540512,0.00363086,96096.0,96095.0,0.11598632]
[1735807541934,0.00363086,96096.0,96095.0,0.11615712]
[1735807549222,0.20623744,96098.0,96095.0,0.11615712]
[1735807549429,0.00272964,96096.0,96095.0,0.11615712]
[1735807549821,0.20623744,96098.0,96095.0,0.11615712]
[1735807550053,0.00272964,96096.0,96095.0,0.11615712]
[1735807550257,0.20623744,96098.0,96095.0,0.10715712]
[1735807550651,0.00272964,96096.0,96095.0,0.11315712]
[1735807550856,0.2997872,96098.0,96095.0,0.10415712]
[1735807550993,0.00273091,96097.0,96095.0,0.10715712]
[1735807551179,0.00272964,96096.0,96095.0,0.10715712]
[1735807551384,0.00272964,96096.0,96095.0,0.10415712]
[1735807551793,0.00372964,96096.0,96095.0,0.11315712]
[1735807552836,0.00372964,96096.0,96095.0,0.11615712]
[1735807553027,0.00372964,96096.0,96095.0,1.40665712]
[1735807554560,0.00372964,96096.0,96095.0,1.42965712]
[1735807554772,0.00372964,96096.0,96095.0,1.50985712]
[1735807555775,0.001,96096.0,96095.0,1.50985712]
[1735807557279,0.001,96096.0,96095.0,1.71798412]
[1735807557484,0.001,96096.0,96095.0,1.50985712]
[1735807557686,0.001,96096.0,96095.0,1.71798412]
[1735807562909,0.001,96096.0,96095.0,1.81798412]
[1735807563955,0.001,96096.0,96095.0,1.86568412]
[1735807565980,8.54e-05,96098.0,96097.0,0.1]
[1735807566181,8.54e-05,96098.0,96097.0,0.30788632]
[1735807566383,8.54e-05,96098.0,96097.0,1.59838632]
[1735807567499,8.54e-05,96098.0,96097.0,1.60738632]
[1735807568447,8.54e-05,96098.0,96097.0,1.80568632]
[1735807568744,8.54e-05,96098.0,96097.0,2.44768632]
[1735807569410,8.54e-05,96098.0,96097.0,2.45368632]
[1735807570229,8.54e-05,96098.0,96097.0,2.44768632]
[1735807570354,8.54e-05,96098.0,96097.0,2.43868632]
[1735807570594,8.54e-05,96098.0,96097.0,2.45468632]
[1735807570847,8.54e-05,96098.0,96097.0,2.44568632]
[1735807571050,0.00954662,96105.0,96104.0,0.710807]
[1735807571269,0.00954662,96105.0,96104.0,2.00529332]
[1735807571623,0.00954662,96105.0,96104.0,2.10529332]
[1735807573055,0.00954662,96105.0,96104.0,2.11429332]
[1735807573781,0.00954662,96105.0,96104.0,2.12229332]
[1735807574923,0.00954662,96105.0,96104.0,2.02229332]
[1735807575251,0.00954662,96105.0,96104.0,2.12229332]
[1735807575658,0.00954662,96105.0,96104.0,2.02229332]
[1735807575857,0.00954662,96105.0,96104.0,2.12229332]
[1735807577008,0.00954662,96105.0,96104.0,2.13270623]
[1735807577731,0.00954662,96105.0,96104.0,2.03270623]
[1735807578621,0.00954662,96105.0,96104.0,2.23219332]
[1735807578837,0.00954662,96105.0,96104.0,2.12229332]
[1735807579029,0.00963202,96105.0,96104.0,2.02229332]
[1735807579563,0.00963202,96105.0,96104.0,1.92229332]
[1735807579803,0.00963202,96105.0,96104.0,2.02229332]
[1735807589111,0.00973202,96105.0,96104.0,2.02229332]
[1735807589605,0.00973202,96105.0,96104.0,2.03192532]
[1735807591168,0.00973202,96105.0,96104.0,2.03209612]
[1735807592521,0.00973202,96105.0,96104.0,1.83459612]
[1735807593591,0.00968202,96105.0,96104.0,1.83459612]
[1735807598409,0.00968202,96105.0,96104.0,1.65239612]
[1735807598997,0.00968202,96105.0,96104.0,1.62939612]
[1735807599987,0.00968202,96105.0,96104.0,1.65239612]
[1735807607012,0.00968202,96105.0,96104.0,1.64276412]
[1735807607804,0.00968202,96105.0,96104.0,1.43465712]
[1735807608596,0.00968202,96105.0,96104.0,1.42665712]
[1735807608914,0.00968202,96105.0,96104.0,1.43065712]
[1735807609087,0.00968202,96105.0,96104.0,1.42165712]
[1735807609288,0.00968202,96105.0,96104.0,1.43065712]
[1735807609493,0.00968202,96105.0,96104.0,1.42665712]
[1735807609710,0.00968202,96105.0,96104.0,1.43165712]
[1735807612135,0.00968202,96105.0,96104.0,1.49564344]
[1735807612341,0.00968202,96105.0,96104.0,1.43165712]
[1735807615355,0.09238202,96105.0,96104.0,1.40865712]
[1735807616851,0.00968202,96105.0,96104.0,1.40865712]
[1735807624324,0.00968202,96105.0,96104.0,1.43165712]
[1735807628197,0.00968202,96105.0,96104.0,1.40865712]
[1735807631576,0.00968202,96105.0,96104.0,1.43165712]
[1735807632899,0.00968202,96105.0,96104.0,1.50665712]
[1735807636683,0.0001706,96106.0,96105.0,0.15331798]
[1735807636928,0.0001706,96106.0,96105.0,0.2573043]
[1735807637428,0.0001706,96106.0,96105.0,1.5478043]
[1735807638102,0.0001706,96106.0,96105.0,1.5608043]
[1735807647498,0.0001706,96106.0,96105.0,1.5378043]
[1735807651466,0.0001706,96106.0,96105.0,1.43381798]
[1735807652242,0.0001706,96106.0,96105.0,1.42081798]
[1735807652443,0.0001706,96106.0,96105.0,1.42281798]
[1735807652643,0.0001706,96106.0,96105.0,1.43181798]
[1735807652957,0.0001706,96106.0,96105.0,1.42081798]
[1735807653402,0.0001706,96106.0,96105.0,1.43181798]
[1735807654212,0.09372036,96106.0,96105.0,1.43181798]
[1735807655413,0.0001706,96106.0,96105.0,1.43181798]
[1735807656960,0.00286829,96106.0,96105.0,1.43181798]
[1735807659937,0.00286829,96106.0,96105.0,1.43198878]
[1735807666977,0.00286829,96106.0,96105.0,1.5589751]
[1735807667423,0.0001706,96106.0,96105.0,1.5589751]
[1735807667910,0.0001706,96106.0,96105.0,1.6409751]
[1735807678360,0.002864,96106.0,96105.0,1.6409751]
[1735807678866,0.0001706,96106.0,96105.0,1.6409751]
[1735807680507,0.0001706,96106.0,96105.0,1.5359751]
[1735807680733,0.00287037,96106.0,96105.0,1.5359751]
[1735807682950,0.0001706,96106.0,96105.0,1.5359751]
[1735807683959,0.00287038,96106.0,96105.0,1.5359751]
[1735807687428,0.0001706,96106.0,96105.0,1.5359751]
[1735807694296,0.0001706,96106.0,96105.0,1.6863751]
[1735807695345,0.0001706,96106.0,96105.0,1.6843751]
[1735807695555,0.0001706,96106.0,96105.0,1.6883751]
[1735807695958,0.0001706,96106.0,96105.0,1.6793751]
[1735807696376,0.0001706,96106.0,96105.0,1.6883751]
[1735807696582,0.0001706,96106.0,96105.0,1.6843751]
[1735807696787,0.0001706,96106.0,96105.0,1.6753751]
[1735807696992,0.0001706,96106.0,96105.0,1.6883751]
[1735807701359,0.0001706,96106.0,96105.0,1.6653751]
[1735807701765,0.0001706,96106.0,96105.0,1.6883751]
[1735807720862,8.53e-05,96122.0,96120.0,0.208072]
[1735807721067,8.53e-05,96122.0,96121.0,0.57125632]
[1735807721068,0.00014155,96122.0,96121.0,0.57125632]
[1735807721273,0.09354976,96132.0,96131.0,0.589649]
[1735807721513,0.09354976,96133.0,96132.0,0.4046]
[1735807721740,0.09354976,96133.0,96132.0,1.83132033]
[1735807722304,0.09354976,96133.0,96132.0,1.79888632]
[1735807722913,0.00016023,96134.0,96133.0,0.563145]
[1735807723113,0.00016023,96134.0,96133.0,0.66713132]
[1735807723316,0.00016023,96134.0,96133.0,1.95743132]
[1735807723658,0.00016023,96134.0,96133.0,2.0973261]
[1735807724508,0.00016023,96134.0,96133.0,2.1063261]
[1735807724760,0.00016023,96134.0,96133.0,2.05970051]
[1735807725213,0.00016023,96134.0,96133.0,2.06670051]
[1735807725858,0.00016023,96134.0,96133.0,1.97343132]
[1735807729458,0.00024563,96134.0,96133.0,1.97343132]
[1735807732376,0.00024563,96134.0,96133.0,1.87343132]
[1735807732984,0.00024563,96134.0,96133.0,1.91510132]
[1735807737196,0.00024563,96134.0,96133.0,2.01510132]
[1735807739360,0.04329726,96145.0,96144.0,0.208021]
[1735807739566,0.04378861,96145.0,96144.0,0.33500732]
[1735807739772,0.04378861,96145.0,96144.0,1.62530732]
[1735807740531,0.04378861,96145.0,96144.0,1.63030732]
[1735807740754,0.04378861,96145.0,96144.0,1.63930732]
[1735807745314,0.04378861,96145.0,96144.0,1.71980732]
[1735807746677,0.04368861,96145.0,96144.0,1.71980732]
[1735807749836,0.04358861,96145.0,96144.0,1.71980732]
[1735807752649,0.04358861,96145.0,96144.0,1.71997812]
[1735807753068,0.04367401,96145.0,96144.0,1.71997812]
[1735807756373,0.04367401,96145.0,96144.0,1.75247245]
[1735807762274,0.03623195,96145.0,96144.0,1.75247245]
[1735807762708,0.03623195,96145.0,96144.0,1.74747245]
[1735807763148,0.03623195,96145.0,96144.0,1.74447245]
[1735807763376,0.03623195,96145.0,96144.0,1.75347245]
[1735807764333,0.03623195,96145.0,96144.0,1.72097812]
[1735807765240,0.03623195,96145.0,96144.0,1.81424731]
[1735807765854,0.03623195,96145.0,96144.0,1.8608729]
[1735807766843,0.03623195,96145.0,96144.0,2.2057372]
[1735807767670,0.03623195,96145.0,96144.0,2.23822163]
[1735807767906,0.03623195,96145.0,96144.0,2.534518]
[1735807768094,0.03623195,96145.0,96144.0,2.93662322]
[1735807768615,0.03623195,96145.0,96144.0,2.39462322]
[1735807769021,0.03623195,96145.0,96144.0,2.38862322]
[1735807769231,0.03623195,96145.0,96144.0,2.66863911]
[1735807769487,0.03623195,96145.0,96144.0,2.67763911]
[1735807770498,0.0002,96169.0,96155.0,0.1]
[1735807770720,0.0002,96169.0,96161.0,0.20768632]
[1735807770945,0.0002,96169.0,96161.0,0.41567032]
[1735807771096,0.0002,96169.0,96161.0,1.70587032]
[1735807771907,0.0002,96169.0,96161.0,1.79930797]
[1735807772523,0.0002,96169.0,96161.0,1.80830797]
[1735807773945,0.0002,96169.0,96161.0,1.81330797]
[1735807775263,0.0002,96169.0,96161.0,1.71987032]
[1735807775819,0.0002,96169.0,96161.0,1.86987032]
[1735807777217,0.0002,96169.0,96161.0,1.96330797]
[1735807778243,0.0002,96169.0,96161.0,2.05830797]
[1735807778419,0.0002,96169.0,96161.0,1.95587032]
[1735807778578,0.0002,96169.0,96161.0,1.96087032]
[1735807778978,0.0002,96169.0,96161.0,2.51187032]
[1735807779188,0.0002,96169.0,96161.0,2.7520268]
[1735807779799,0.0002,96169.0,96161.0,2.82873195]
[1735807780230,3e-07,96162.0,96161.0,3.03116553]
[1735807780404,3e-07,96162.0,96161.0,3.04016553]
[1735807781217,3e-07,96162.0,96161.0,3.32047849]
[1735807781616,3e-07,96162.0,96161.0,3.31147849]
[1735807781843,3e-07,96162.0,96161.0,3.03116553]
[1735807782152,3e-07,96162.0,96161.0,3.03316553]
[1735807782402,3e-07,96162.0,96161.0,3.00976038]
[1735807783014,3e-07,96162.0,96161.0,2.73746038]
[1735807783841,3e-07,96162.0,96161.0,2.21846038]
[1735807784624,3e-07,96162.0,96161.0,2.20946038]
[1735807784923,3e-07,96162.0,96161.0,1.87387032]
[1735807785281,3e-07,96162.0,96161.0,1.95587032]
[1735807785531,3e-07,96162.0,96161.0,1.96287032]
[1735807785763,3e-07,96162.0,96161.0,2.06513793]
[1735807785972,3e-07,96162.0,96161.0,2.05613793]
[1735807786174,3e-07,96162.0,96161.0,2.05813793]
[1735807786378,3e-07,96162.0,96161.0,2.06713793]
[1735807786587,3e-07,96162.0,96161.0,2.05813793]
[1735807786714,3e-07,96162.0,96161.0,2.04913793]
[1735807786915,3e-07,96162.0,96161.0,1.95587032]
[1735807787120,3e-07,96162.0,96161.0,1.96487032]
[1735807788423,3e-07,96162.0,96161.0,1.97387032]
[1735807788630,3e-07,96162.0,96161.0,2.06708239]
[1735807789704,3e-07,96162.0,96161.0,2.60908239]
[1735807791757,3e-07,96162.0,96161.0,2.51587032]
[1735807793205,3e-07,96162.0,96161.0,2.41587032]
[1735807793418,3e-07,96162.0,96161.0,2.51587032]
[1735807795668,3e-07,96162.0,96161.0,1.97387032]
[1735807795880,3e-07,96162.0,96161.0,1.79317032]
[1735807797245,3e-07,96162.0,96161.0,1.78417032]
[1735807797669,3e-07,96162.0,96161.0,1.62517032]
[1735807797841,0.2452437,96173.0,96161.0,1.61117032]
[1735807798073,0.24539102,96173.0,96165.0,0.10398632]
[1735807798456,0.20796,96172.0,96165.0,0.10398632]
[1735807798663,0.20796,96172.0,96166.0,0.023]
[1735807798900,0.20796,96172.0,96168.0,0.023]
[1735807799083,0.20796,96172.0,96169.0,0.10398632]
[1735807800487,0.41592,96172.0,96169.0,0.10398632]
[1735807801193,0.20796,96172.0,96169.0,0.11298632]
[1735807801870,0.20796,96172.0,96169.0,0.11698632]
[1735807802097,0.20796,96172.0,96170.0,0.01129863]
[1735807802332,0.20796,96172.0,96171.0,0.10398632]
[1735807803126,0.19996,96172.0,96171.0,0.10398632]
[1735807803596,0.334565,96170.0,96169.0,0.009]
[1735807804281,0.20798,96163.0,96162.0,0.13031798]
[1735807804517,0.33518,96163.0,96162.0,0.13031798]
[1735807805977,0.33518,96163.0,96162.0,0.2353043]
[1735807806189,0.33518,96163.0,96162.0,0.2433043]
[1735807807111,0.33518,96163.0,96162.0,0.13931798]
[1735807808262,0.58518,96163.0,96162.0,0.13931798]
[1735807810208,0.48518,96163.0,96162.0,0.13931798]
[1735807811031,0.48518,96163.0,96162.0,0.13948878]
[1735807813304,0.58518,96163.0,96162.0,0.13948878]
[1735807813937,0.48518,96163.0,96162.0,0.13948878]
[1735807814707,0.58518,96163.0,96162.0,0.13948878]
[1735807816572,0.48518,96163.0,96162.0,0.13948878]
[1735807827220,0.35798,96163.0,96162.0,0.13948878]
[1735807828485,0.43888,96163.0,96162.0,0.13948878]
[1735807829829,0.48488,96163.0,96162.0,0.13948878]
[1735807831429,0.48488,96163.0,96162.0,0.13148878]
[1735807831656,0.48488,96163.0,96162.0,0.13448878]
[1735807832420,0.48488,96163.0,96162.0,0.13048878]
[1735807832875,0.48488,96163.0,96162.0,0.13248878]
[1735807833488,0.48588,96163.0,96162.0,0.13248878]
[1735807834061,0.78986632,96163.0,96162.0,0.13248878]
[1735807834884,0.68588,96163.0,96162.0,0.13248878]
[1735807836339,0.77941422,96163.0,96162.0,0.13248878]
[1735807837173,0.67941422,96163.0,96162.0,0.13248878]
[1735807837374,0.55251422,96163.0,96162.0,0.13248878]
[1735807837531,0.45251422,96163.0,96162.0,0.13248878]
[1735807837936,0.30251422,96163.0,96162.0,0.13248878]
[1735807838352,0.45251422,96163.0,96162.0,0.13248878]
[1735807838887,0.35898,96163.0,96162.0,0.13248878]
[1735807839167,0.35898,96163.0,96162.0,0.13048878]
[1735807839357,0.35798,96163.0,96162.0,0.13048878]
[1735807839630,0.35798,96163.0,96162.0,0.13948878]
[1735807839865,0.35798,96163.0,96162.0,0.13148878]
[1735807840097,0.35798,96163.0,96162.0,0.21168878]
[1735807840098,0.20798,96163.0,96162.0,0.21168878]
[1735807840616,0.20798,96163.0,96162.0,0.21268878]
[1735807840847,0.207965,96170.0,96162.0,0.33786106]
[1735807841051,0.00014732,96173.0,96163.0,0.10398632]
[1735807842339,0.207972,96167.0,96163.0,0.10398632]
[1735807842785,0.207972,96167.0,96163.0,0.10998632]
[1735807843772,0.207972,96167.0,96163.0,0.10398632]
[1735807844335,0.207972,96167.0,96163.0,0.10598632]
[1735807844937,0.207972,96167.0,96163.0,0.10515431]
[1735807845419,0.207972,96167.0,96163.0,0.10315431]
[1735807845621,0.415944,96167.0,96163.0,0.11215431]
[1735807845849,0.415944,96167.0,96163.0,0.10315431]
[1735807846310,0.415944,96167.0,96163.0,0.11215431]
[1735807846715,0.415944,96167.0,96163.0,0.11515431]
[1735807846942,0.415944,96167.0,96163.0,0.10615431]
[1735807847197,0.415944,96167.0,96163.0,0.10315431]
[1735807847425,0.415944,96167.0,96163.0,0.11215431]
[1735807849027,0.415944,96167.0,96163.0,0.10515431]
[1735807849207,0.415944,96167.0,96163.0,0.11415431]
[1735807852029,0.207975,96165.0,96163.0,0.011]
[1735807852861,0.15,96164.0,96163.0,0.009]
[1735807853064,0.15,96164.0,96162.0,0.13048878]
[1735807853271,0.35798,96163.0,96162.0,0.13048878]
[1735807855516,0.44513261,96163.0,96162.0,0.13048878]
[1735807855721,0.44513261,96163.0,96162.0,0.13748878]
[1735807855924,0.53881902,96163.0,96162.0,0.13848878]
[1735807856346,0.53881902,96163.0,96162.0,0.13148878]
[1735807856610,0.53881902,96163.0,96162.0,0.13048878]
[1735807856834,0.35798,96163.0,96162.0,0.13548878]
[1735807863811,0.49851169,96163.0,96162.0,0.13548878]
[1735807864946,0.35798,96163.0,96162.0,0.13548878]
[1735807871857,0.3580654,96163.0,96162.0,0.13548878]
[1735807873622,0.3579654,96163.0,96162.0,0.13548878]